bitfinex-derivatives/quotes_ETHF0:USTF0_20220106
["timestamp","ask_amount","ask_price","bid_price","bid_amount"]
[1641441129371,3.10253758,3471.7,3471.3,0.56500402]
[1641441130270,3.23493158,3471.7,3471.3,0.56500402]
[1641441130476,2.37916324,3471.6,3471.3,0.56500402]
[1641441131675,1.90347746,3471.4,3471.3,0.56500402]
[1641441132275,3.53587146,3471.4,3470.7,1.30435761]
[1641441132479,1.5,3471.2,3470.7,1.30435761]
[1641441132675,0.132394,3471.1,3470.7,1.30435761]
[1641441132879,1.5,3471.0,3469.7,3.26138508]
[1641441133176,2.3247,3471.0,3469.7,4.67519298]
[1641441133377,0.132394,3470.9,3469.7,4.67519298]
[1641441133776,2.00479,3470.8,3470.0,2.00479]
[1641441133976,0.132394,3470.7,3470.0,2.00479]
[1641441136279,0.132394,3470.7,3470.1,1.23078203]
[1641441137680,2.00479,3470.8,3470.1,1.23078203]
[1641441137882,2.137184,3470.8,3470.1,1.23078203]
[1641441138281,2.00479,3470.8,3470.1,1.23078203]
[1641441138581,2.137184,3470.8,3470.1,1.23078203]
[1641441139182,0.43791711,3470.7,3470.1,1.23078203]
[1641441139485,0.132394,3470.6,3470.1,1.23078203]
[1641441141582,0.43791711,3470.5,3470.1,1.23078203]
[1641441142785,0.43791711,3470.5,3470.4,1.5]
[1641441142986,1.90347746,3471.2,3470.4,1.5]
[1641441142987,1.90347746,3471.2,3470.4,2.94004032]
[1641441143186,1.90347746,3471.2,3470.8,1.5]
[1641441143888,1.90347746,3471.2,3471.1,4.00958]
[1641441145693,0.81548075,3471.6,3471.1,19.87050054]
[1641441145888,6.15947272,3472.2,3471.5,2.00479]
[1641441146088,1.89348355,3472.2,3471.6,1.5]
[1641441146488,1.89348355,3472.2,3472.0,1.5]
[1641441146688,1.89348355,3472.2,3471.7,12.29]
[1641441147190,1.72254404,3472.6,3472.1,1.43944748]
[1641441147393,5.68581965,3473.6,3472.1,1.43944748]
[1641441147588,5.68581965,3473.6,3471.8,12.29]
[1641441147789,5.68581965,3473.6,3472.9,2.93917403]
[1641441147992,5.68581965,3473.6,3472.9,4.94396403]
[1641441148188,5.68581965,3473.6,3473.3,1.43901042]
[1641441148792,5.68581965,3473.6,3473.4,0.98236503]
[1641441148992,3.96327561,3473.6,3473.4,0.98236503]
[1641441149390,4.26598917,3473.9,3473.4,0.98236503]
[1641441149591,3.96327561,3474.5,3473.4,0.98236503]
[1641441149990,3.96327561,3474.5,3473.8,2.00479]
[1641441150192,0.132394,3474.4,3473.8,2.00479]
[1641441151696,1.5,3473.9,3473.4,0.98236503]
[1641441151895,2.00479,3473.5,3472.9,2.00479]
[1641441152295,0.132394,3473.4,3472.9,2.00479]
[1641441152494,1.5,3473.3,3472.9,2.00479]
[1641441152895,0.132394,3473.2,3472.9,2.00479]
[1641441153099,0.229991,3473.1,3472.9,2.00479]
[1641441153394,0.132394,3473.0,3472.9,2.00479]
[1641441153994,0.878994,3473.0,3472.9,2.00479]
[1641441154799,0.878994,3473.0,3472.3,2.00479]
[1641441155697,0.878994,3473.0,3472.4,0.94473493]
[1641441156699,0.7466,3473.0,3472.4,0.94473493]
[1641441157103,0.878994,3473.0,3472.4,0.94473493]
[1641441157306,0.7466,3473.0,3472.4,0.94473493]
[1641441158102,0.878994,3473.0,3472.4,0.94473493]
[1641441159803,0.7466,3473.0,3472.4,0.94473493]
[1641441160006,0.7466,3473.0,3472.9,2.00479]
[1641441160007,2.01000584,3473.0,3472.9,2.00479]
[1641441160912,2.23999684,3473.0,3472.9,2.00479]
[1641441161510,0.7466,3473.0,3472.9,2.00479]
[1641441161710,0.878994,3473.0,3472.9,2.00479]
[1641441161910,1.108985,3473.0,3472.9,2.00479]
[1641441162613,1.108985,3473.0,3471.7,0.97262414]
[1641441162614,12.29,3472.9,3471.7,0.97262414]
[1641441162813,4.04896519,3473.0,3471.5,2.2702666]
[1641441162814,1.5,3471.8,3471.5,2.2702666]
[1641441163010,0.362385,3471.7,3471.5,2.2702666]
[1641441163213,0.362385,3471.7,3471.5,0.97262414]
[1641441163412,0.132394,3471.7,3471.5,0.97262414]
[1641441163611,1.5,3472.5,3471.5,0.97262414]
[1641441164012,2.00479,3471.7,3471.5,0.97262414]
[1641441164314,2.234781,3471.7,3471.5,0.97262414]
[1641441164812,2.234781,3471.7,3471.2,1.29764246]
[1641441165012,2.234781,3471.7,3471.0,1.14408054]
[1641441165214,2.367175,3471.7,3471.0,1.14408054]
[1641441166512,2.137184,3471.7,3471.0,1.14408054]
[1641441167114,2.137184,3471.7,3471.2,1.5]
[1641441167315,2.137184,3471.7,3471.4,1.43978115]
[1641441167514,2.00479,3471.7,3471.4,1.43978115]
[1641441170919,0.229991,3471.6,3471.0,1.14408054]
[1641441171116,1.729991,3471.6,3470.3,0.97262414]
[1641441171517,1.5,3471.2,3470.3,0.97262414]
[1641441172120,2.00479,3470.6,3470.3,0.97262414]
[1641441172921,2.00479,3470.6,3469.8,2.00479]
[1641441173119,2.00479,3470.6,3470.4,0.97403681]
[1641441176223,0.229991,3470.5,3470.4,0.97403681]
[1641441176424,2.00479,3470.6,3470.4,0.97403681]
[1641441176622,0.132394,3470.5,3470.4,0.97403681]
[1641441177322,2.00479,3470.6,3470.4,0.97403681]
[1641441178625,2.234781,3470.6,3470.4,0.97403681]
[1641441178926,0.132394,3470.5,3470.4,0.97403681]
[1641441182328,1.632394,3470.5,3470.4,0.97403681]
[1641441182527,1.632394,3470.5,3468.8,33.55756987]
[1641441182528,1.862385,3470.5,3468.8,0.97262414]
[1641441182728,1.5,3470.0,3468.8,0.97262414]
[1641441183132,1.5,3469.3,3468.8,0.97262414]
[1641441183430,0.132394,3469.2,3468.8,0.97262414]
[1641441184230,2.00479,3469.1,3468.5,1.29764246]
[1641441184430,0.132394,3469.0,3468.3,2.00479]
[1641441187032,0.132394,3469.0,3467.9,3.04943379]
[1641441188236,2.00479,3468.7,3467.9,1.04464379]
[1641441188435,0.132394,3468.6,3467.9,1.04464379]
[1641441189436,0.132394,3468.6,3467.0,31.2922]
[1641441189437,0.132394,3468.6,3467.0,32.26482414]
[1641441189636,0.132394,3468.6,3467.0,0.97262414]
[1641441190241,0.132394,3468.6,3467.1,3.34471387]
[1641441190242,2.00479,3467.9,3467.1,3.34471387]
[1641441190438,0.132394,3467.8,3467.1,3.34471387]
[1641441191041,0.132394,3467.8,3467.1,2.00479]
[1641441191443,0.132394,3467.8,3466.4,1.86334316]
[1641441191641,12.29,3467.6,3466.4,0.97262414]
[1641441191842,1.5,3466.7,3466.4,0.97262414]
[1641441192141,4.00958,3466.5,3466.4,0.97062414]
[1641441192545,4.00958,3466.5,3465.9,1.62204447]
[1641441192743,0.132394,3466.4,3465.9,1.62204447]
[1641441192944,0.229991,3466.3,3465.6,3.01027585]
[1641441193145,0.229991,3466.3,3465.6,1.06496989]
[1641441193745,4.00958,3466.5,3465.6,1.06496989]
[1641441194947,4.00958,3466.5,3466.1,1.94530596]
[1641441195348,2.00479,3466.5,3466.4,12.29]
[1641441195547,1.89494048,3467.4,3466.4,12.29]
[1641441195749,1.89494048,3467.4,3467.3,2.94144144]
[1641441196052,1.89494048,3467.4,3467.3,0.5562]
[1641441196248,1.89494048,3467.4,3467.3,1.95058354]
[1641441196449,0.229991,3467.4,3467.3,1.95058354]
[1641441197550,0.132394,3467.6,3467.3,1.95058354]
[1641441197951,1.89494048,3467.7,3467.3,1.95058354]
[1641441198351,1.89494048,3467.7,3467.3,2.00612024]
[1641441198553,2.00479,3467.8,3467.3,2.00612024]
[1641441199553,0.39920538,3467.7,3467.4,0.6117367]
[1641441199751,0.229991,3467.6,3467.4,0.6117367]
[1641441200051,0.39920538,3467.7,3467.4,0.6117367]
[1641441200851,0.39920538,3467.7,3467.4,2.2425991]
[1641441201655,0.229991,3467.6,3467.4,2.2425991]
[1641441201853,2.00479,3467.8,3467.4,2.2425991]
[1641441202655,2.137184,3467.8,3467.4,2.2425991]
[1641441203563,1.5,3467.5,3467.4,2.2425991]
[1641441203756,1.862385,3467.5,3466.1,4.48479318]
[1641441203958,1.5,3467.3,3466.1,4.48479318]
[1641441204257,4.00958,3466.7,3466.3,1.95754944]
[1641441204557,4.00958,3466.7,3466.4,1.349173]
[1641441204859,0.229991,3466.6,3466.4,1.349173]
[1641441205457,0.229991,3466.6,3466.3,1.95754944]
[1641441205657,0.229991,3466.6,3466.2,0.81564893]
[1641441205858,0.132394,3466.5,3466.2,0.81564893]
[1641441206171,0.229991,3466.4,3465.6,4.12231551]
[1641441206356,2.00479,3466.3,3465.6,4.12231551]
[1641441206558,2.137184,3466.3,3465.6,4.12231551]
[1641441206957,2.137184,3466.3,3465.6,5.62231551]
[1641441207157,2.00479,3466.3,3465.6,5.62231551]
[1641441207358,2.00479,3466.3,3466.2,1.3052945]
[1641441208359,2.234781,3466.3,3466.2,1.3052945]
[1641441208559,2.234781,3466.3,3466.2,0.8549218]
[1641441209159,2.367175,3466.3,3466.2,0.8549218]
[1641441210564,7.367175,3466.3,3466.2,5.8549218]
[1641441213264,7.367175,3466.3,3466.2,8.79849331]
[1641441213465,7.00479,3466.3,3466.2,8.79849331]
[1641441213665,7.00479,3466.3,3466.2,10.29849331]
[1641441213666,5.0,3466.3,3466.2,10.29849331]
[1641441213868,5.0,3466.3,3466.2,11.74045438]
[1641441214065,5.0,3466.3,3466.2,10.29849331]
[1641441214266,5.0,3466.3,3466.2,10.10887927]
[1641441214467,1.25414144,3466.6,3466.2,23.54874747]
[1641441214665,1.25414144,3466.6,3466.3,13.79]
[1641441215165,1.25414144,3466.6,3466.3,1.5]
[1641441215565,1.25414144,3466.6,3466.2,20.60685917]
[1641441215768,1.25414144,3466.6,3466.2,8.31685917]
[1641441216067,2.00479,3467.3,3466.3,0.81564893]
[1641441216268,2.00479,3467.3,3466.3,2.31564893]
[1641441216469,2.00479,3467.3,3466.3,0.81564893]
[1641441217067,2.00479,3467.3,3466.8,1.63118711]
[1641441217268,3.25893144,3467.3,3467.0,1.30494969]
[1641441218267,0.362385,3467.2,3467.0,1.30494969]
[1641441218467,0.362385,3467.2,3467.1,1.15710536]
[1641441218870,0.132394,3467.2,3467.1,1.15710536]
[1641441219070,3.25893144,3467.3,3467.1,1.15710536]
[1641441219271,1.25414144,3467.2,3467.1,1.15710536]
[1641441220468,1.48413244,3467.2,3467.1,1.15710536]
[1641441220668,1.25414144,3467.2,3467.1,1.15710536]
[1641441220867,2.00479,3467.3,3467.1,1.15710536]
[1641441221469,0.49371244,3467.6,3467.1,1.38709636]
[1641441221675,0.62610644,3467.6,3467.1,1.15710536]
[1641441222272,0.62610644,3467.6,3467.2,1.0]
[1641441224276,0.40858631,3467.5,3467.2,1.97872791]
[1641441224473,0.076609,3467.4,3467.2,1.97872791]
[1641441224674,0.132394,3467.3,3467.2,1.97872791]
[1641441225573,0.54098031,3467.3,3467.2,1.97872791]
[1641441227175,0.54098031,3467.3,3467.1,3.16192327]
[1641441227374,2.37544454,3467.6,3467.4,0.38241069]
[1641441227575,1.5,3467.5,3467.1,3.16192327]
[1641441227975,0.132394,3467.4,3467.1,3.16192327]
[1641441228378,0.132394,3467.4,3467.1,3.16189536]
[1641441229178,1.57467326,3467.4,3467.1,3.16189536]
[1641441229479,0.132394,3467.4,3467.1,3.16189536]
[1641441231678,2.37548466,3467.6,3467.2,0.229991]
[1641441232081,2.37548466,3467.6,3467.1,3.16189536]
[1641441232082,0.49371244,3467.6,3467.1,3.16189536]
[1641441232279,0.49371244,3467.6,3467.4,1.0]
[1641441232478,0.49371244,3467.6,3467.5,0.229991]
[1641441232880,0.49371244,3467.6,3467.4,1.132394]
[1641441234183,0.49371244,3467.6,3467.4,1.0]
[1641441234783,0.62610644,3467.6,3467.4,1.0]
[1641441235585,1.29070644,3467.6,3467.1,4.46684415]
[1641441236286,1.29070644,3467.6,3467.1,3.16189536]
[1641441237088,1.5,3467.4,3467.1,3.16189536]
[1641441237287,12.29,3467.5,3466.9,1.30494879]
[1641441237489,0.632394,3467.3,3466.9,1.30494879]
[1641441237888,0.632394,3467.3,3466.7,1.30494879]
[1641441238685,2.00479,3467.1,3466.7,1.30494879]
[1641441239087,12.29,3467.0,3466.7,1.30494879]
[1641441239489,1.25535348,3466.8,3466.5,2.20155599]
[1641441239890,1.91395348,3466.8,3466.5,2.20155599]
[1641441240489,1.91395348,3466.8,3466.7,0.867606]
[1641441240890,1.91395348,3466.8,3466.7,1.097597]
[1641441241189,1.91395348,3466.8,3466.7,0.867606]
[1641441241389,0.6586,3466.8,3466.7,0.867606]
[1641441241590,0.81559355,3467.0,3466.7,0.867606]
[1641441241791,0.81559355,3467.0,3466.9,0.867606]
[1641441242792,2.00479,3467.1,3466.9,0.867606]
[1641441243593,2.00479,3467.1,3466.8,1.0]
[1641441245296,1.88177222,3467.4,3466.8,1.0]
[1641441245507,1.88177222,3467.4,3466.9,0.867606]
[1641441246094,3.32405148,3467.4,3467.1,0.867606]
[1641441246295,1.88177222,3467.4,3467.3,0.867606]
[1641441246694,1.88177222,3467.4,3467.3,3.00479]
[1641441246895,2.3686756,3467.5,3467.3,3.00479]
[1641441247096,2.3686756,3467.5,3467.4,0.229991]
[1641441248395,0.41470092,3467.5,3467.4,3.1136783]
[1641441248996,2.00479,3468.1,3467.5,0.58529908]
[1641441249198,2.3686756,3468.2,3468.0,0.867606]
[1641441249398,3.15915097,3468.4,3468.1,0.229991]
[1641441249799,3.15915097,3468.4,3468.3,0.867606]
[1641441250196,5.097e-05,3468.4,3468.3,1.849497]
[1641441250398,0.81559355,3468.4,3468.3,3.349497]
[1641441250597,5.097e-05,3468.7,3468.4,0.132394]
[1641441250797,5.097e-05,3468.7,3468.6,2.872396]
[1641441250997,5.097e-05,3468.7,3468.6,3.102387]
[1641441251198,5.097e-05,3468.7,3468.6,3.234781]
[1641441251901,5.097e-05,3468.7,3468.6,4.67573018]
[1641441252101,3.96327561,3469.0,3468.6,3.234781]
[1641441252305,3.96327561,3469.0,3468.9,0.867606]
[1641441252499,3.96327561,3469.0,3468.9,1.229991]
[1641441252705,2.00479,3469.4,3468.9,1.0]
[1641441252902,2.00479,3469.4,3469.3,0.867606]
[1641441253300,2.00479,3469.4,3469.3,1.83175152]
[1641441253703,2.00479,3469.4,3469.3,1.09653952]
[1641441254505,2.00479,3469.4,3469.3,1.32653052]
[1641441254906,2.00479,3469.4,3469.3,0.81214767]
[1641441255104,2.00479,3469.4,3469.3,0.58215667]
[1641441255304,2.00479,3469.4,3469.3,0.81214767]
[1641441255506,3.57003213,3469.8,3469.3,1.67975367]
[1641441255705,2.00479,3469.8,3469.7,0.867606]
[1641441255905,3.96327561,3470.1,3469.7,0.132394]
[1641441256512,3.96327561,3470.1,3470.0,0.867606]
[1641441256806,3.96327561,3470.1,3470.0,1.229991]
[1641441257007,3.96327561,3470.1,3470.0,1.0]
[1641441257307,3.96327561,3470.1,3470.0,0.132394]
[1641441257508,6.27077917,3470.4,3470.0,0.132394]
[1641441257509,2.3610367,3470.3,3470.0,0.132394]
[1641441257706,2.3610367,3470.3,3469.9,1.31206715]
[1641441258307,0.632394,3470.2,3469.6,2.00479]
[1641441258508,15.2834307,3470.3,3469.5,0.97838548]
[1641441258708,2.00479,3469.7,3469.5,0.97838548]
[1641441259308,2.00479,3469.7,3469.4,0.132394]
[1641441259712,0.632394,3469.5,3469.3,7.948e-05]
[1641441259910,0.632394,3469.5,3467.7,4.94469071]
[1641441260114,0.632394,3468.5,3467.7,4.07708471]
[1641441260313,1.44200889,3468.1,3468.0,2.88058842]
[1641441260513,12.29,3468.4,3468.3,1.95660289]
[1641441260712,18.908067,3468.4,3467.8,2.88058842]
[1641441260912,0.132394,3468.3,3467.8,2.88058842]
[1641441261314,0.632394,3468.2,3467.8,2.88058842]
[1641441261514,0.632394,3468.2,3467.5,4.66238379]
[1641441261713,0.632394,3468.0,3467.5,4.66238379]
[1641441261913,0.632394,3468.0,3467.5,0.58529908]
[1641441262114,0.132394,3467.9,3467.5,0.58529908]
[1641441262816,2.00479,3467.6,3467.5,0.58529908]
[1641441263015,2.137184,3467.6,3467.5,0.58529908]
[1641441266123,2.00479,3467.6,3467.5,0.58529908]
[1641441266320,2.00479,3467.6,3467.5,1.45290508]
[1641441266922,2.00479,3467.6,3467.5,1.68289608]
[1641441267222,2.00479,3467.6,3467.5,2.41682361]
[1641441268724,2.3610367,3468.3,3467.5,3.91682361]
[1641441268925,2.3610367,3468.3,3468.2,0.867606]
[1641441269124,2.3610367,3468.3,3468.2,1.097597]
[1641441269328,2.3610367,3468.3,3468.2,1.229991]
[1641441269527,2.00479,3468.4,3468.2,1.229991]
[1641441269942,0.81558634,3468.7,3468.3,1.5]
[1641441270128,0.81558634,3468.7,3468.4,0.132394]
[1641441270326,0.81558634,3468.7,3468.6,0.867606]
[1641441270728,0.81558634,3468.7,3468.6,1.0]
[1641441270926,2.3610367,3468.8,3468.6,1.0]
[1641441270927,1.88190644,3468.8,3468.6,1.0]
[1641441271126,1.88190644,3468.8,3468.7,0.96347215]
[1641441271327,1.88190644,3468.8,3468.7,1.19346315]
[1641441271527,2.3610367,3469.1,3468.7,2.69346315]
[1641441271726,2.3610367,3469.1,3468.8,1.0]
[1641441272528,2.3610367,3469.1,3469.0,0.867606]
[1641441272730,2.3610367,3469.1,3469.0,1.0]
[1641441273329,3.1396599,3469.3,3469.0,1.0]
[1641441273531,3.88700197,3469.5,3469.1,0.229991]
[1641441273832,3.88700197,3469.5,3469.2,1.0]
[1641441274032,1.88221197,3469.5,3469.2,2.1162423]
[1641441274232,1.88221197,3469.5,3469.4,0.867606]
[1641441274633,1.88221197,3469.5,3469.3,0.867606]
[1641441274833,4.3658267,3469.8,3469.3,0.867606]
[1641441275135,2.00479,3469.8,3469.7,0.867606]
[1641441275635,2.00479,3469.8,3469.7,1.0]
[1641441276034,2.00479,3469.8,3469.7,1.77260294]
[1641441276535,2.00479,3469.8,3469.7,2.00259394]
[1641441276735,2.00479,3469.8,3469.7,1.77260294]
[1641441277334,2.00479,3469.8,3469.7,2.00259394]
[1641441278234,4.3658267,3470.3,3469.7,1.77260294]
[1641441278435,0.132394,3470.2,3469.7,0.90499694]
[1641441279134,0.132394,3470.2,3469.8,0.58529908]
[1641441279735,2.4934307,3470.2,3469.8,0.58529908]
[1641441281335,1.8835727,3470.0,3469.8,0.18484408]
[1641441281538,0.132394,3469.9,3469.8,0.18484408]
[1641441282436,0.132394,3469.9,3469.8,1.05245008]
[1641441282837,2.3610367,3470.1,3469.8,1.28244108]
[1641441283039,2.3610367,3470.1,3470.0,0.867606]
[1641441283438,2.3610367,3470.1,3470.0,2.367606]
[1641441283639,2.3610367,3470.1,3470.0,2.729991]
[1641441283838,2.3610367,3470.1,3470.0,3.83900947]
[1641441284038,3.1396599,3470.3,3470.0,3.83900947]
[1641441284239,5.49535441,3470.3,3470.2,2.367606]
[1641441284439,2.35569451,3470.3,3470.2,2.729991]
[1641441284638,3.1396599,3470.5,3470.2,2.729991]
[1641441284838,3.1396599,3470.5,3470.4,0.867606]
[1641441285140,3.1396599,3470.5,3470.4,1.0]
[1641441285338,3.1396599,3470.5,3470.4,1.229991]
[1641441285740,3.1396599,3470.5,3470.4,1.0]
[1641441286139,3.1396599,3470.5,3470.4,1.097597]
[1641441286640,2.00479,3470.6,3470.4,1.097597]
[1641441286841,0.132394,3470.5,3470.4,0.867606]
[1641441287141,1.632394,3470.5,3469.9,0.97674924]
[1641441287341,13.922394,3470.5,3469.9,0.97674924]
[1641441287540,1.44104885,3470.3,3469.8,0.18484408]
[1641441287741,0.132394,3470.2,3469.8,0.18484408]
[1641441288043,1.5,3469.9,3469.8,0.18484408]
[1641441288240,0.132394,3469.9,3469.8,0.18484408]
[1641441288843,1.632394,3469.9,3469.1,1.30232798]
[1641441289041,14.29479,3469.4,3468.8,1.6284033]
[1641441289241,0.132394,3469.3,3468.8,1.6284033]
[1641441289445,1.5,3469.0,3468.8,1.6284033]
[1641441289743,0.132394,3468.9,3468.8,1.6284033]
[1641441289942,0.132394,3468.9,3468.6,3.95828848]
[1641441290146,0.132394,3468.9,3468.6,2.00479]
[1641441290348,0.132394,3468.9,3468.3,2.00479]
[1641441290743,0.132394,3468.9,3468.3,2.137184]
[1641441290944,2.00479,3468.7,3468.3,0.132394]
[1641441292248,2.00479,3468.7,3468.2,0.132394]
[1641441292646,0.38070056,3468.6,3468.2,0.132394]
[1641441293849,0.38070056,3468.6,3468.3,0.61150461]
[1641441294048,0.38070056,3468.6,3468.4,0.362385]
[1641441294449,0.38070056,3468.6,3468.4,1.093785]
[1641441295452,0.38070056,3468.6,3468.4,0.362385]
[1641441297453,0.38070056,3468.6,3468.4,0.132394]
[1641441297653,0.38070056,3468.6,3468.4,0.362385]
[1641441298254,2.00479,3468.7,3468.4,0.362385]
[1641441299354,0.37986433,3468.6,3468.4,0.362385]
[1641441301556,0.37986433,3468.6,3468.5,1.5]
[1641441301756,1.88567346,3468.9,3468.5,1.44098656]
[1641441301957,1.88567346,3468.9,3468.6,0.132394]
[1641441302156,1.25264578,3469.0,3468.7,0.229991]
[1641441302556,1.25264578,3469.0,3468.8,0.132394]
[1641441302756,1.88567346,3469.6,3468.8,0.879594]
[1641441303256,1.88567346,3469.6,3469.1,2.00479]
[1641441303458,1.88567346,3469.6,3469.2,0.132394]
[1641441304257,2.00479,3469.9,3469.2,0.132394]
[1641441304459,2.137184,3469.9,3469.2,0.132394]
[1641441305962,0.36844848,3469.8,3469.2,0.132394]
[1641441307058,0.132394,3469.7,3469.1,2.00479]
[1641441307858,1.5,3469.2,3468.0,1.63074755]
[1641441308058,1.5,3468.1,3468.0,1.63074755]
[1641441308260,1.632394,3468.1,3467.8,1.63074755]
[1641441308459,3.07435299,3468.1,3467.8,1.63074755]
[1641441308662,3.07435299,3468.1,3467.6,1.95689706]
[1641441308858,1.632394,3468.1,3467.6,1.95689706]
[1641441309260,2.00479,3467.7,3467.6,1.95689706]
[1641441309457,2.137184,3467.7,3467.6,1.95689706]
[1641441310059,14.427184,3467.7,3466.5,1.95689706]
[1641441310262,1.5,3466.8,3466.5,1.95689706]
[1641441310459,0.132394,3466.7,3466.5,1.95689706]
[1641441310659,0.132394,3466.7,3466.5,1.95489706]
[1641441310860,1.5,3466.6,3466.5,1.95489706]
[1641441311059,13.922394,3466.6,3465.7,4.07686887]
[1641441311263,1.5,3465.8,3465.7,4.07686887]
[1641441311460,3.07532257,3465.8,3465.7,4.07686887]
[1641441312061,1.632394,3465.8,3465.4,4.48455576]
[1641441312265,1.632394,3465.8,3465.1,0.81579913]
[1641441313065,1.632394,3465.8,3465.1,0.27399913]
[1641441313066,1.5,3465.3,3465.1,0.27399913]
[1641441313267,3.58044161,3465.2,3465.1,0.27399913]
[1641441313467,2.137184,3465.2,3463.9,4.48455576]
[1641441314067,1.5,3464.7,3464.1,1.30011942]
[1641441314266,0.132394,3464.6,3464.1,1.30011942]
[1641441314472,1.5,3464.5,3464.1,1.30011942]
[1641441314673,1.5,3464.2,3464.1,1.30011942]
[1641441314875,1.5,3464.2,3462.8,4.07686887]
[1641441315074,0.6004,3464.1,3462.8,4.07686887]
[1641441315277,2.00479,3463.1,3462.8,4.07686887]
[1641441315476,2.00479,3463.4,3463.0,13.79]
[1641441315774,1.5,3465.9,3463.3,1.5]
[1641441315974,1.5,3465.1,3462.9,1.5]
[1641441316175,1.5,3464.8,3462.8,4.07686887]
[1641441316376,1.5,3464.4,3462.9,0.7370005]
[1641441317173,2.00479,3464.0,3463.2,2.00479]
[1641441317373,0.132394,3463.9,3463.2,2.00479]
[1641441317573,1.5,3463.6,3461.0,5.467]
[1641441317775,1.5,3463.3,3461.0,5.467]
[1641441318073,1.5,3463.3,3463.0,0.61226594]
[1641441318274,0.132394,3463.2,3463.0,0.61226594]
[1641441319274,2.00479,3463.1,3463.0,0.61226594]
[1641441319675,1.44328469,3465.0,3463.0,3.68794463]
[1641441319874,2.35706296,3464.5,3463.0,0.132394]
[1641441320076,14.64706296,3464.5,3463.0,0.132394]
[1641441320274,1.5,3464.4,3463.0,0.132394]
[1641441320474,1.5,3464.4,3462.7,1.4433951]
[1641441320675,1.5,3464.4,3462.1,2.00479]
[1641441320874,14.64706296,3464.5,3462.1,2.00479]
[1641441321076,18.35311129,3464.3,3462.3,1.44357429]
[1641441321277,2.00479,3463.4,3462.6,2.00479]
[1641441321482,2.00479,3463.4,3462.7,0.132394]
[1641441321688,2.00479,3463.4,3462.7,0.761494]
[1641441322077,0.132394,3463.3,3462.7,0.761494]
[1641441322880,0.132394,3463.3,3462.7,0.6291]
[1641441323179,0.132394,3463.3,3462.7,0.132394]
[1641441324479,2.00479,3463.4,3462.7,0.132394]
[1641441325179,2.137184,3463.4,3462.7,0.132394]
[1641441325680,2.00479,3463.4,3462.7,0.132394]
[1641441325879,1.44404541,3463.1,3462.7,0.132394]
[1641441326079,2.00479,3463.4,3462.7,1.10789218]
[1641441326680,2.00479,3463.4,3462.7,2.60789218]
[1641441327281,1.24132654,3464.1,3463.3,1.5]
[1641441327481,1.24132654,3464.2,3463.4,0.132394]
[1641441327682,1.24132654,3464.2,3463.3,1.44313888]
[1641441327882,1.24132654,3464.2,3463.9,1.5]
[1641441328081,1.24132654,3464.2,3464.0,0.362385]
[1641441328282,1.24132654,3464.2,3463.1,0.72781876]
[1641441328882,12.29,3464.6,3463.1,1.70331694]
[1641441329082,1.5,3464.4,3463.1,1.70331694]
[1641441329286,12.29,3464.4,3463.7,2.00479]
[1641441329482,0.132394,3464.3,3463.7,2.00479]
[1641441329883,1.44374311,3463.9,3463.7,2.00479]
[1641441330082,0.132394,3463.8,3463.7,2.00479]
[1641441330281,2.00479,3464.5,3463.7,2.00479]
[1641441330682,0.44884757,3464.3,3463.7,2.00479]
[1641441331084,0.58124157,3464.3,3463.7,2.137184]
[1641441331385,1.24132654,3464.4,3463.7,2.137184]
[1641441331786,2.00479,3464.5,3463.7,2.137184]
[1641441332385,0.132394,3464.4,3463.7,2.137184]
[1641441332586,2.00479,3464.5,3463.7,2.137184]
[1641441332985,0.132394,3464.4,3463.7,2.137184]
[1641441335087,1.632394,3464.4,3462.8,0.97549818]
[1641441335391,1.5,3463.3,3462.8,0.97549818]
[1641441335587,0.132394,3463.2,3462.8,0.97549818]
[1641441335986,2.00479,3463.8,3462.8,0.97549818]
[1641441337389,2.00479,3463.2,3462.9,0.92161034]
[1641441337591,1.44410588,3463.0,3462.4,0.97549818]
[1641441337888,2.00479,3463.2,3462.4,0.97549818]
[1641441338088,0.132394,3463.1,3462.4,0.97549818]
[1641441339296,4.00958,3462.5,3462.4,0.97549818]
[1641441339492,4.141974,3462.5,3461.7,0.97549818]
[1641441340494,4.899074,3462.5,3461.7,0.97549818]
[1641441340893,4.899074,3462.5,3461.5,0.97549818]
[1641441341095,12.29,3462.4,3461.5,1.5879607]
[1641441341294,2.00479,3461.8,3461.5,1.5879607]
[1641441341495,2.00479,3461.8,3461.6,0.229991]
[1641441341693,2.00479,3462.5,3461.6,0.229991]
[1641441341896,5.0,3463.3,3462.4,1.5]
[1641441342295,5.0,3463.3,3461.5,0.97549818]
[1641441342495,7.07426834,3463.3,3461.5,0.97549818]
[1641441342696,7.07426834,3463.3,3461.4,1.5]
[1641441342895,5.6302,3463.3,3461.4,1.5]
[1641441343194,17.9202,3463.3,3461.4,1.5]
[1641441343394,2.00479,3462.3,3461.5,2.92595635]
[1641441343595,0.132394,3462.2,3461.5,2.92595635]
[1641441344397,2.00479,3462.3,3461.5,2.92595635]
[1641441345296,2.00479,3462.3,3461.7,1.5]
[1641441345496,2.00479,3462.3,3462.2,1.5]
[1641441345698,5.0,3463.3,3462.2,0.229991]
[1641441346295,5.0,3463.3,3461.5,2.00479]
[1641441346698,5.0,3463.3,3461.6,1.00497229]
[1641441347297,2.00479,3462.2,3461.6,1.00497229]
[1641441348502,2.137184,3462.2,3461.6,1.00497229]
[1641441349800,2.137184,3462.2,3461.5,2.00479]
[1641441351004,2.956484,3462.2,3461.5,2.00479]
[1641441351402,2.00479,3461.6,3460.9,0.00037187]
[1641441351802,2.137184,3461.6,3460.9,0.00037187]
[1641441352003,2.00479,3461.6,3460.9,0.00037187]
[1641441352207,0.132394,3461.5,3460.9,0.00037187]
[1641441353004,0.971594,3461.5,3460.9,0.00037187]
[1641441353403,2.00479,3461.0,3460.9,0.00037187]
[1641441353606,2.00479,3461.0,3460.9,0.23036287]
[1641441353906,2.00479,3461.0,3460.9,0.00037187]
[1641441354104,2.00479,3461.0,3460.4,1.44445006]
[1641441354310,2.137184,3461.0,3459.6,2.00479]
[1641441354906,2.137184,3461.0,3459.6,14.29479]